{"text_format":"1","workbook":"xlsx","n_sheets":2,"sheets":["r12","Base12"],"not_rendered":{"charts":0,"images":9,"macros":1,"external_links":0,"defined_names":9,"comments":0,"pivot_tables":0},"unopened":[],"bounds":{"document_bytes":16777216,"sheet_cells":100000,"rows_first":2000,"rows_last":500,"rows_between":2000,"halvings":0,"cell_chars":16384,"cell_head_chars":4096},"cells_cut":0,"cells_raw":0,"read":"whole","date_system":"1900"}

{"sheet":"r12","index":0,"n_rows":3000,"n_cols":9,"rows_kept":3000,"cut":false,"hidden":false,"merged":[[0,7,0,8],[0,0,0,4]]}
["R12 - Tilleggsspesifikasjoner til rapportering for \nbanker og kreditt- og finansieringsforetak",null,null,null,null,null,null,"RA-0779\njanuar 2018"]
[]
["Datasentralnummer (3 siffer)"]
["Organisasjonsnr. (9 siffer)"]
["Rapport nr. (12, 2 siffer)",12]
["Periode (år og måned; ååååmm, 6 siffer)  "]
[]
[]
["Veiledning for malen - se vår hjemmeside"]
[]
["TILLEGGSSPESIFIKASJONSPOSTER","KODE","LØPETID","PANT/SIKKERHET","SEKTOR","NÆRING","FYLKE","VALUTA","VERDI"]
["",null,"",null,"","",0,""]
[null,{"$f":"IF(ISBLANK(A13),\"\",VLOOKUP(A13,base_itens,2,FALSE))","v":""}]
[null,""]
[null,""]
[null,""]
[null,""]
[null,""]
[null,{"$f":"IF(ISBLANK(A19),\"\",VLOOKUP(A19,base_itens,2,FALSE))","v":""}]
[null,""]
[null,""]
[null,""]
[null,""]
[null,""]
[null,""]
[null,""]
[null,""]
[null,""]
[null,""]
[null,""]
[null,""]
[null,""]
[null,""]
[null,""]
[null,""]
[null,""]
[null,""]
[null,""]
[null,""]
[null,""]
[null,""]
[null,""]
[null,""]
[null,""]
[null,""]
[null,""]
[null,""]
[null,""]
[null,""]
[null,""]
[null,""]
[null,""]
[null,""]
[null,""]
[null,""]
[null,""]
[null,""]
[null,""]
[null,""]
[null,""]
[null,""]
[null,""]
[null,""]
[null,""]
[null,""]
[null,""]
[null,""]
[null,""]
[null,""]
[null,""]
[null,""]
[null,""]
[null,""]
[null,""]
[null,""]
[null,""]
[null,{"$f":"IF(ISBLANK(A77),\"\",VLOOKUP(A77,base_itens,2,FALSE))","v":""}]
[null,""]
[null,""]
[null,""]
[null,""]
[null,""]
[null,""]
[null,""]
[null,""]
[null,""]
[null,""]
[null,""]
[null,""]
[null,""]
[null,""]
[null,""]
[null,""]
[null,""]
[null,""]
[null,""]
[null,""]
[null,""]
[null,""]
[null,""]
[null,""]
[null,""]
[null,""]
[null,""]
[null,""]
[null,""]
[null,""]
[null,""]
[null,""]
[null,""]
[null,""]
[null,""]
[null,""]
[null,""]
[null,""]
[null,""]
[null,""]
[null,""]
[null,""]
[null,""]
[null,""]
[null,""]
[null,""]
[null,""]
[null,""]
[null,""]
[null,""]
[null,""]
[null,""]
[null,""]
[null,""]
[null,""]
[null,""]
[null,""]
[null,""]
[null,""]
[null,""]
[null,""]
[null,""]
[null,""]
[null,{"$f":"IF(ISBLANK(A141),\"\",VLOOKUP(A141,base_itens,2,FALSE))","v":""}]
[null,""]
[null,""]
[null,""]
[null,""]
[null,""]
[null,""]
[null,""]
[null,""]
[null,""]
[null,""]
[null,""]
[null,""]
[null,""]
[null,""]
[null,""]
[null,""]
[null,""]
[null,""]
[null,""]
[null,""]
[null,""]
[null,""]
[null,""]
[null,""]
[null,""]
[null,""]
[null,""]
[null,""]
[null,""]
[null,""]
[null,""]
[null,""]
[null,""]
[null,""]
[null,""]
[null,""]
[null,""]
[null,""]
[null,""]
[null,""]
[null,""]
[null,""]
[null,""]
[null,""]
[null,""]
[null,""]
[null,""]
[null,""]
[null,""]
[null,""]
[null,""]
[null,""]
[null,""]
[null,""]
[null,""]
[null,""]
[null,""]
[null,""]
[null,""]
[null,""]
[null,""]
[null,""]
[null,""]
[null,{"$f":"IF(ISBLANK(A205),\"\",VLOOKUP(A205,base_itens,2,FALSE))","v":""}]
[null,""]
[null,""]
[null,""]
[null,""]
[null,""]
[null,""]
[null,""]
[null,""]
[null,""]
[null,""]
[null,""]
[null,""]
[null,""]
[null,""]
[null,""]
[null,""]
[null,""]
[null,""]
[null,""]
[null,""]
[null,""]
[null,""]
[null,""]
[null,""]
[null,""]
[null,""]
[null,""]
[null,""]
[null,""]
[null,""]
[null,""]
[null,""]
[null,""]
[null,""]
[null,""]
[null,""]
[null,""]
[null,""]
[null,""]
[null,""]
[null,""]
[null,""]
[null,""]
[null,""]
[null,""]
[null,""]
[null,""]
[null,""]
[null,""]
[null,""]
[null,""]
[null,""]
[null,""]
[null,""]
[null,""]
[null,""]
[null,""]
[null,""]
[null,""]
[null,""]
[null,""]
[null,""]
[null,""]
[null,{"$f":"IF(ISBLANK(A269),\"\",VLOOKUP(A269,base_itens,2,FALSE))","v":""}]
[null,""]
[null,""]
[null,""]
[null,""]
[null,""]
[null,""]
[null,""]
[null,""]
[null,""]
[null,""]
[null,""]
[null,""]
[null,""]
[null,""]
[null,""]
[null,""]
[null,""]
[null,""]
[null,""]
[null,""]
[null,""]
[null,""]
[null,""]
[null,""]
[null,""]
[null,""]
[null,""]
[null,""]
[null,""]
[null,""]
[null,""]
[null,""]
[null,""]
[null,""]
[null,""]
[null,""]
[null,""]
[null,""]
[null,""]
[null,""]
[null,""]
[null,""]
[null,""]
[null,""]
[null,""]
[null,""]
[null,""]
[null,""]
[null,""]
[null,""]
[null,""]
[null,""]
[null,""]
[null,""]
[null,""]
[null,""]
[null,""]
[null,""]
[null,""]
[null,""]
[null,""]
[null,""]
[null,""]
[null,{"$f":"IF(ISBLANK(A333),\"\",VLOOKUP(A333,base_itens,2,FALSE))","v":""}]
[null,""]
[null,""]
[null,""]
[null,""]
[null,""]
[null,""]
[null,""]
[null,""]
[null,""]
[null,""]
[null,""]
[null,""]
[null,""]
[null,""]
[null,""]
[null,""]
[null,""]
[null,""]
[null,""]
[null,""]
[null,""]
[null,""]
[null,""]
[null,""]
[null,""]
[null,""]
[null,""]
[null,""]
[null,""]
[null,""]
[null,""]
[null,""]
[null,""]
[null,""]
[null,""]
[null,""]
[null,""]
[null,""]
[null,""]
[null,""]
[null,""]
[null,""]
[null,""]
[null,""]
[null,""]
[null,""]
[null,""]
[null,""]
[null,""]
[null,""]
[null,""]
[null,""]
[null,""]
[null,""]
[null,""]
[null,""]
[null,""]
[null,""]
[null,""]
[null,""]
[null,""]
[null,""]
[null,""]
[null,{"$f":"IF(ISBLANK(A397),\"\",VLOOKUP(A397,base_itens,2,FALSE))","v":""}]
[null,""]
[null,""]
[null,""]
[null,""]
[null,""]
[null,""]
[null,""]
[null,""]
[null,""]
[null,""]
[null,""]
[null,""]
[null,""]
[null,""]
[null,""]
[null,""]
[null,""]
[null,""]
[null,""]
[null,""]
[null,""]
[null,""]
[null,""]
[null,""]
[null,""]
[null,""]
[null,""]
[null,""]
[null,""]
[null,""]
[null,""]
[null,""]
[null,""]
[null,""]
[null,""]
[null,""]
[null,""]
[null,""]
[null,""]
[null,""]
[null,""]
[null,""]
[null,""]
[null,""]
[null,""]
[null,""]
[null,""]
[null,""]
[null,""]
[null,""]
[null,""]
[null,""]
[null,""]
[null,""]
[null,""]
[null,""]
[null,""]
[null,""]
[null,""]
[null,""]
[null,""]
[null,""]
[null,""]
[null,{"$f":"IF(ISBLANK(A461),\"\",VLOOKUP(A461,base_itens,2,FALSE))","v":""}]
[null,""]
[null,""]
[null,""]
[null,""]
[null,""]
[null,""]
[null,""]
[null,""]
[null,""]
[null,""]
[null,""]
[null,""]
[null,""]
[null,""]
[null,""]
[null,""]
[null,""]
[null,""]
[null,""]
[null,""]
[null,""]
[null,""]
[null,""]
[null,""]
[null,""]
[null,""]
[null,""]
[null,""]
[null,""]
[null,""]
[null,""]
[null,""]
[null,""]
[null,""]
[null,""]
[null,""]
[null,""]
[null,""]
[null,""]
[null,""]
[null,""]
[null,""]
[null,""]
[null,""]
[null,""]
[null,""]
[null,""]
[null,""]
[null,""]
[null,""]
[null,""]
[null,""]
[null,""]
[null,""]
[null,""]
[null,""]
[null,""]
[null,""]
[null,""]
[null,""]
[null,""]
[null,""]
[null,""]
[null,{"$f":"IF(ISBLANK(A525),\"\",VLOOKUP(A525,base_itens,2,FALSE))","v":""}]
[null,""]
[null,""]
[null,""]
[null,""]
[null,""]
[null,""]
[null,""]
[null,""]
[null,""]
[null,""]
[null,""]
[null,""]
[null,""]
[null,""]
[null,""]
[null,""]
[null,""]
[null,""]
[null,""]
[null,""]
[null,""]
[null,""]
[null,""]
[null,""]
[null,""]
[null,""]
[null,""]
[null,""]
[null,""]
[null,""]
[null,""]
[null,""]
[null,""]
[null,""]
[null,""]
[null,""]
[null,""]
[null,""]
[null,""]
[null,""]
[null,""]
[null,""]
[null,""]
[null,""]
[null,""]
[null,""]
[null,""]
[null,""]
[null,""]
[null,""]
[null,""]
[null,""]
[null,""]
[null,""]
[null,""]
[null,""]
[null,""]
[null,""]
[null,""]
[null,""]
[null,""]
[null,""]
[null,""]
[null,{"$f":"IF(ISBLANK(A589),\"\",VLOOKUP(A589,base_itens,2,FALSE))","v":""}]
[null,""]
[null,""]
[null,""]
[null,""]
[null,""]
[null,""]
[null,""]
[null,""]
[null,""]
[null,""]
[null,""]
[null,""]
[null,""]
[null,""]
[null,""]
[null,""]
[null,""]
[null,""]
[null,""]
[null,""]
[null,""]
[null,""]
[null,""]
[null,""]
[null,""]
[null,""]
[null,""]
[null,""]
[null,""]
[null,""]
[null,""]
[null,""]
[null,""]
[null,""]
[null,""]
[null,""]
[null,""]
[null,""]
[null,""]
[null,""]
[null,""]
[null,""]
[null,""]
[null,""]
[null,""]
[null,""]
[null,""]
[null,""]
[null,""]
[null,""]
[null,""]
[null,""]
[null,""]
[null,""]
[null,""]
[null,""]
[null,""]
[null,""]
[null,""]
[null,""]
[null,""]
[null,""]
[null,""]
[null,{"$f":"IF(ISBLANK(A653),\"\",VLOOKUP(A653,base_itens,2,FALSE))","v":""}]
[null,""]
[null,""]
[null,""]
[null,""]
[null,""]
[null,""]
[null,""]
[null,""]
[null,""]
[null,""]
[null,""]
[null,""]
[null,""]
[null,""]
[null,""]
[null,""]
[null,""]
[null,""]
[null,""]
[null,""]
[null,""]
[null,""]
[null,""]
[null,""]
[null,""]
[null,""]
[null,""]
[null,""]
[null,""]
[null,""]
[null,""]
[null,""]
[null,""]
[null,""]
[null,""]
[null,""]
[null,""]
[null,""]
[null,""]
[null,""]
[null,""]
[null,""]
[null,""]
[null,""]
[null,""]
[null,""]
[null,""]
[null,""]
[null,""]
[null,""]
[null,""]
[null,""]
[null,""]
[null,""]
[null,""]
[null,""]
[null,""]
[null,""]
[null,""]
[null,""]
[null,""]
[null,""]
[null,""]
[null,{"$f":"IF(ISBLANK(A717),\"\",VLOOKUP(A717,base_itens,2,FALSE))","v":""}]
[null,""]
[null,""]
[null,""]
[null,""]
[null,""]
[null,""]
[null,""]
[null,""]
[null,""]
[null,""]
[null,""]
[null,""]
[null,""]
[null,""]
[null,""]
[null,""]
[null,""]
[null,""]
[null,""]
[null,""]
[null,""]
[null,""]
[null,""]
[null,""]
[null,""]
[null,""]
[null,""]
[null,""]
[null,""]
[null,""]
[null,""]
[null,""]
[null,""]
[null,""]
[null,""]
[null,""]
[null,""]
[null,""]
[null,""]
[null,""]
[null,""]
[null,""]
[null,""]
[null,""]
[null,""]
[null,""]
[null,""]
[null,""]
[null,""]
[null,""]
[null,""]
[null,""]
[null,""]
[null,""]
[null,""]
[null,""]
[null,""]
[null,""]
[null,""]
[null,""]
[null,""]
[null,""]
[null,""]
[null,{"$f":"IF(ISBLANK(A781),\"\",VLOOKUP(A781,base_itens,2,FALSE))","v":""}]
[null,""]
[null,""]
[null,""]
[null,""]
[null,""]
[null,""]
[null,""]
[null,""]
[null,""]
[null,""]
[null,""]
[null,""]
[null,""]
[null,""]
[null,""]
[null,""]
[null,""]
[null,""]
[null,""]
[null,""]
[null,""]
[null,""]
[null,""]
[null,""]
[null,""]
[null,""]
[null,""]
[null,""]
[null,""]
[null,""]
[null,""]
[null,""]
[null,""]
[null,""]
[null,""]
[null,""]
[null,""]
[null,""]
[null,""]
[null,""]
[null,""]
[null,""]
[null,""]
[null,""]
[null,""]
[null,""]
[null,""]
[null,""]
[null,""]
[null,""]
[null,""]
[null,""]
[null,""]
[null,""]
[null,""]
[null,""]
[null,""]
[null,""]
[null,""]
[null,""]
[null,""]
[null,""]
[null,""]
[null,{"$f":"IF(ISBLANK(A845),\"\",VLOOKUP(A845,base_itens,2,FALSE))","v":""}]
[null,""]
[null,""]
[null,""]
[null,""]
[null,""]
[null,""]
[null,""]
[null,""]
[null,""]
[null,""]
[null,""]
[null,""]
[null,""]
[null,""]
[null,""]
[null,""]
[null,""]
[null,""]
[null,""]
[null,""]
[null,""]
[null,""]
[null,""]
[null,""]
[null,""]
[null,""]
[null,""]
[null,""]
[null,""]
[null,""]
[null,""]
[null,""]
[null,""]
[null,""]
[null,""]
[null,""]
[null,""]
[null,""]
[null,""]
[null,""]
[null,""]
[null,""]
[null,""]
[null,""]
[null,""]
[null,""]
[null,""]
[null,""]
[null,""]
[null,""]
[null,""]
[null,""]
[null,""]
[null,""]
[null,""]
[null,""]
[null,""]
[null,""]
[null,""]
[null,""]
[null,""]
[null,""]
[null,""]
[null,{"$f":"IF(ISBLANK(A909),\"\",VLOOKUP(A909,base_itens,2,FALSE))","v":""}]
[null,""]
[null,""]
[null,""]
[null,""]
[null,""]
[null,""]
[null,""]
[null,""]
[null,""]
[null,""]
[null,""]
[null,""]
[null,""]
[null,""]
[null,""]
[null,""]
[null,""]
[null,""]
[null,""]
[null,""]
[null,""]
[null,""]
[null,""]
[null,""]
[null,""]
[null,""]
[null,""]
[null,""]
[null,""]
[null,""]
[null,""]
[null,""]
[null,""]
[null,""]
[null,""]
[null,""]
[null,""]
[null,""]
[null,""]
[null,""]
[null,""]
[null,""]
[null,""]
[null,""]
[null,""]
[null,""]
[null,""]
[null,""]
[null,""]
[null,""]
[null,""]
[null,""]
[null,""]
[null,""]
[null,""]
[null,""]
[null,""]
[null,""]
[null,""]
[null,""]
[null,""]
[null,""]
[null,""]
[null,{"$f":"IF(ISBLANK(A973),\"\",VLOOKUP(A973,base_itens,2,FALSE))","v":""}]
[null,""]
[null,""]
[null,""]
[null,""]
[null,""]
[null,""]
[null,""]
[null,""]
[null,""]
[null,""]
[null,""]
[null,""]
[null,""]
[null,""]
[null,""]
[null,""]
[null,""]
[null,""]
[null,""]
[null,""]
[null,""]
[null,""]
[null,""]
[null,""]
[null,""]
[null,""]
[null,""]
[null,""]
[null,""]
[null,""]
[null,""]
[null,""]
[null,""]
[null,""]
[null,""]
[null,""]
[null,""]
[null,""]
[null,""]
[null,""]
[null,""]
[null,""]
[null,""]
[null,""]
[null,""]
[null,""]
[null,""]
[null,""]
[null,""]
[null,""]
[null,""]
[null,""]
[null,""]
[null,""]
[null,""]
[null,""]
[null,""]
[null,""]
[null,""]
[null,""]
[null,""]
[null,""]
[null,""]
[null,{"$f":"IF(ISBLANK(A1037),\"\",VLOOKUP(A1037,base_itens,2,FALSE))","v":""}]
[null,""]
[null,""]
[null,""]
[null,""]
[null,""]
[null,""]
[null,""]
[null,""]
[null,""]
[null,""]
[null,""]
[null,""]
[null,""]
[null,""]
[null,""]
[null,""]
[null,""]
[null,""]
[null,""]
[null,""]
[null,""]
[null,""]
[null,""]
[null,""]
[null,""]
[null,""]
[null,""]
[null,""]
[null,""]
[null,""]
[null,""]
[null,""]
[null,""]
[null,""]
[null,""]
[null,""]
[null,""]
[null,""]
[null,""]
[null,""]
[null,""]
[null,""]
[null,""]
[null,""]
[null,""]
[null,""]
[null,""]
[null,""]
[null,""]
[null,""]
[null,""]
[null,""]
[null,""]
[null,""]
[null,""]
[null,""]
[null,""]
[null,""]
[null,""]
[null,""]
[null,""]
[null,""]
[null,""]
[null,{"$f":"IF(ISBLANK(A1101),\"\",VLOOKUP(A1101,base_itens,2,FALSE))","v":""}]
[null,""]
[null,""]
[null,""]
[null,""]
[null,""]
[null,""]
[null,""]
[null,""]
[null,""]
[null,""]
[null,""]
[null,""]
[null,""]
[null,""]
[null,""]
[null,""]
[null,""]
[null,""]
[null,""]
[null,""]
[null,""]
[null,""]
[null,""]
[null,""]
[null,""]
[null,""]
[null,""]
[null,""]
[null,""]
[null,""]
[null,""]
[null,""]
[null,""]
[null,""]
[null,""]
[null,""]
[null,""]
[null,""]
[null,""]
[null,""]
[null,""]
[null,""]
[null,""]
[null,""]
[null,""]
[null,""]
[null,""]
[null,""]
[null,""]
[null,""]
[null,""]
[null,""]
[null,""]
[null,""]
[null,""]
[null,""]
[null,""]
[null,""]
[null,""]
[null,""]
[null,""]
[null,""]
[null,""]
[null,{"$f":"IF(ISBLANK(A1165),\"\",VLOOKUP(A1165,base_itens,2,FALSE))","v":""}]
[null,""]
[null,""]
[null,""]
[null,""]
[null,""]
[null,""]
[null,""]
[null,""]
[null,""]
[null,""]
[null,""]
[null,""]
[null,""]
[null,""]
[null,""]
[null,""]
[null,""]
[null,""]
[null,""]
[null,""]
[null,""]
[null,""]
[null,""]
[null,""]
[null,""]
[null,""]
[null,""]
[null,""]
[null,""]
[null,""]
[null,""]
[null,""]
[null,""]
[null,""]
[null,""]
[null,""]
[null,""]
[null,""]
[null,""]
[null,""]
[null,""]
[null,""]
[null,""]
[null,""]
[null,""]
[null,""]
[null,""]
[null,""]
[null,""]
[null,""]
[null,""]
[null,""]
[null,""]
[null,""]
[null,""]
[null,""]
[null,""]
[null,""]
[null,""]
[null,""]
[null,""]
[null,""]
[null,""]
[null,{"$f":"IF(ISBLANK(A1229),\"\",VLOOKUP(A1229,base_itens,2,FALSE))","v":""}]
[null,""]
[null,""]
[null,""]
[null,""]
[null,""]
[null,""]
[null,""]
[null,""]
[null,""]
[null,""]
[null,""]
[null,""]
[null,""]
[null,""]
[null,""]
[null,""]
[null,""]
[null,""]
[null,""]
[null,""]
[null,""]
[null,""]
[null,""]
[null,""]
[null,""]
[null,""]
[null,""]
[null,""]
[null,""]
[null,""]
[null,""]
[null,""]
[null,""]
[null,""]
[null,""]
[null,""]
[null,""]
[null,""]
[null,""]
[null,""]
[null,""]
[null,""]
[null,""]
[null,""]
[null,""]
[null,""]
[null,""]
[null,""]
[null,""]
[null,""]
[null,""]
[null,""]
[null,""]
[null,""]
[null,""]
[null,""]
[null,""]
[null,""]
[null,""]
[null,""]
[null,""]
[null,""]
[null,""]
[null,{"$f":"IF(ISBLANK(A1293),\"\",VLOOKUP(A1293,base_itens,2,FALSE))","v":""}]
[null,""]
[null,""]
[null,""]
[null,""]
[null,""]
[null,""]
[null,""]
[null,""]
[null,""]
[null,""]
[null,""]
[null,""]
[null,""]
[null,""]
[null,""]
[null,""]
[null,""]
[null,""]
[null,""]
[null,""]
[null,""]
[null,""]
[null,""]
[null,""]
[null,""]
[null,""]
[null,""]
[null,""]
[null,""]
[null,""]
[null,""]
[null,""]
[null,""]
[null,""]
[null,""]
[null,""]
[null,""]
[null,""]
[null,""]
[null,""]
[null,""]
[null,""]
[null,""]
[null,""]
[null,""]
[null,""]
[null,""]
[null,""]
[null,""]
[null,""]
[null,""]
[null,""]
[null,""]
[null,""]
[null,""]
[null,""]
[null,""]
[null,""]
[null,""]
[null,""]
[null,""]
[null,""]
[null,""]
[null,{"$f":"IF(ISBLANK(A1357),\"\",VLOOKUP(A1357,base_itens,2,FALSE))","v":""}]
[null,""]
[null,""]
[null,""]
[null,""]
[null,""]
[null,""]
[null,""]
[null,""]
[null,""]
[null,""]
[null,""]
[null,""]
[null,""]
[null,""]
[null,""]
[null,""]
[null,""]
[null,""]
[null,""]
[null,""]
[null,""]
[null,""]
[null,""]
[null,""]
[null,""]
[null,""]
[null,""]
[null,""]
[null,""]
[null,""]
[null,""]
[null,""]
[null,""]
[null,""]
[null,""]
[null,""]
[null,""]
[null,""]
[null,""]
[null,""]
[null,""]
[null,""]
[null,""]
[null,""]
[null,""]
[null,""]
[null,""]
[null,""]
[null,""]
[null,""]
[null,""]
[null,""]
[null,""]
[null,""]
[null,""]
[null,""]
[null,""]
[null,""]
[null,""]
[null,""]
[null,""]
[null,""]
[null,""]
[null,{"$f":"IF(ISBLANK(A1421),\"\",VLOOKUP(A1421,base_itens,2,FALSE))","v":""}]
[null,""]
[null,""]
[null,""]
[null,""]
[null,""]
[null,""]
[null,""]
[null,""]
[null,""]
[null,""]
[null,""]
[null,""]
[null,""]
[null,""]
[null,""]
[null,""]
[null,""]
[null,""]
[null,""]
[null,""]
[null,""]
[null,""]
[null,""]
[null,""]
[null,""]
[null,""]
[null,""]
[null,""]
[null,""]
[null,""]
[null,""]
[null,""]
[null,""]
[null,""]
[null,""]
[null,""]
[null,""]
[null,""]
[null,""]
[null,""]
[null,""]
[null,""]
[null,""]
[null,""]
[null,""]
[null,""]
[null,""]
[null,""]
[null,""]
[null,""]
[null,""]
[null,""]
[null,""]
[null,""]
[null,""]
[null,""]
[null,""]
[null,""]
[null,""]
[null,""]
[null,""]
[null,""]
[null,""]
[null,{"$f":"IF(ISBLANK(A1485),\"\",VLOOKUP(A1485,base_itens,2,FALSE))","v":""}]
[null,""]
[null,""]
[null,""]
[null,""]
[null,""]
[null,""]
[null,""]
[null,""]
[null,""]
[null,""]
[null,""]
[null,""]
[null,""]
[null,""]
[null,""]
[null,""]
[null,""]
[null,""]
[null,""]
[null,""]
[null,""]
[null,""]
[null,""]
[null,""]
[null,""]
[null,""]
[null,""]
[null,""]
[null,""]
[null,""]
[null,""]
[null,""]
[null,""]
[null,""]
[null,""]
[null,""]
[null,""]
[null,""]
[null,""]
[null,""]
[null,""]
[null,""]
[null,""]
[null,""]
[null,""]
[null,""]
[null,""]
[null,""]
[null,""]
[null,""]
[null,""]
[null,""]
[null,""]
[null,""]
[null,""]
[null,""]
[null,""]
[null,""]
[null,""]
[null,""]
[null,""]
[null,""]
[null,""]
[null,{"$f":"IF(ISBLANK(A1549),\"\",VLOOKUP(A1549,base_itens,2,FALSE))","v":""}]
[null,""]
[null,""]
[null,""]
[null,""]
[null,""]
[null,""]
[null,""]
[null,""]
[null,""]
[null,""]
[null,""]
[null,""]
[null,""]
[null,""]
[null,""]
[null,""]
[null,""]
[null,""]
[null,""]
[null,""]
[null,""]
[null,""]
[null,""]
[null,""]
[null,""]
[null,""]
[null,""]
[null,""]
[null,""]
[null,""]
[null,""]
[null,""]
[null,""]
[null,""]
[null,""]
[null,""]
[null,""]
[null,""]
[null,""]
[null,""]
[null,""]
[null,""]
[null,""]
[null,""]
[null,""]
[null,""]
[null,""]
[null,""]
[null,""]
[null,""]
[null,""]
[null,""]
[null,""]
[null,""]
[null,""]
[null,""]
[null,""]
[null,""]
[null,""]
[null,""]
[null,""]
[null,""]
[null,""]
[null,{"$f":"IF(ISBLANK(A1613),\"\",VLOOKUP(A1613,base_itens,2,FALSE))","v":""}]
[null,""]
[null,""]
[null,""]
[null,""]
[null,""]
[null,""]
[null,""]
[null,""]
[null,""]
[null,""]
[null,""]
[null,""]
[null,""]
[null,""]
[null,""]
[null,""]
[null,""]
[null,""]
[null,""]
[null,""]
[null,""]
[null,""]
[null,""]
[null,""]
[null,""]
[null,""]
[null,""]
[null,""]
[null,""]
[null,""]
[null,""]
[null,""]
[null,""]
[null,""]
[null,""]
[null,""]
[null,""]
[null,""]
[null,""]
[null,""]
[null,""]
[null,""]
[null,""]
[null,""]
[null,""]
[null,""]
[null,""]
[null,""]
[null,""]
[null,""]
[null,""]
[null,""]
[null,""]
[null,""]
[null,""]
[null,""]
[null,""]
[null,""]
[null,""]
[null,""]
[null,""]
[null,""]
[null,""]
[null,{"$f":"IF(ISBLANK(A1677),\"\",VLOOKUP(A1677,base_itens,2,FALSE))","v":""}]
[null,""]
[null,""]
[null,""]
[null,""]
[null,""]
[null,""]
[null,""]
[null,""]
[null,""]
[null,""]
[null,""]
[null,""]
[null,""]
[null,""]
[null,""]
[null,""]
[null,""]
[null,""]
[null,""]
[null,""]
[null,""]
[null,""]
[null,""]
[null,""]
[null,""]
[null,""]
[null,""]
[null,""]
[null,""]
[null,""]
[null,""]
[null,""]
[null,""]
[null,""]
[null,""]
[null,""]
[null,""]
[null,""]
[null,""]
[null,""]
[null,""]
[null,""]
[null,""]
[null,""]
[null,""]
[null,""]
[null,""]
[null,""]
[null,""]
[null,""]
[null,""]
[null,""]
[null,""]
[null,""]
[null,""]
[null,""]
[null,""]
[null,""]
[null,""]
[null,""]
[null,""]
[null,""]
[null,""]
[null,{"$f":"IF(ISBLANK(A1741),\"\",VLOOKUP(A1741,base_itens,2,FALSE))","v":""}]
[null,""]
[null,""]
[null,""]
[null,""]
[null,""]
[null,""]
[null,""]
[null,""]
[null,""]
[null,""]
[null,""]
[null,""]
[null,""]
[null,""]
[null,""]
[null,""]
[null,""]
[null,""]
[null,""]
[null,""]
[null,""]
[null,""]
[null,""]
[null,""]
[null,""]
[null,""]
[null,""]
[null,""]
[null,""]
[null,""]
[null,""]
[null,""]
[null,""]
[null,""]
[null,""]
[null,""]
[null,""]
[null,""]
[null,""]
[null,""]
[null,""]
[null,""]
[null,""]
[null,""]
[null,""]
[null,""]
[null,""]
[null,""]
[null,""]
[null,""]
[null,""]
[null,""]
[null,""]
[null,""]
[null,""]
[null,""]
[null,""]
[null,""]
[null,""]
[null,""]
[null,""]
[null,""]
[null,""]
[null,{"$f":"IF(ISBLANK(A1805),\"\",VLOOKUP(A1805,base_itens,2,FALSE))","v":""}]
[null,""]
[null,""]
[null,""]
[null,""]
[null,""]
[null,""]
[null,""]
[null,""]
[null,""]
[null,""]
[null,""]
[null,""]
[null,""]
[null,""]
[null,""]
[null,""]
[null,""]
[null,""]
[null,""]
[null,""]
[null,""]
[null,""]
[null,""]
[null,""]
[null,""]
[null,""]
[null,""]
[null,""]
[null,""]
[null,""]
[null,""]
[null,""]
[null,""]
[null,""]
[null,""]
[null,""]
[null,""]
[null,""]
[null,""]
[null,""]
[null,""]
[null,""]
[null,""]
[null,""]
[null,""]
[null,""]
[null,""]
[null,""]
[null,""]
[null,""]
[null,""]
[null,""]
[null,""]
[null,""]
[null,""]
[null,""]
[null,""]
[null,""]
[null,""]
[null,""]
[null,""]
[null,""]
[null,""]
[null,{"$f":"IF(ISBLANK(A1869),\"\",VLOOKUP(A1869,base_itens,2,FALSE))","v":""}]
[null,""]
[null,""]
[null,""]
[null,""]
[null,""]
[null,""]
[null,""]
[null,""]
[null,""]
[null,""]
[null,""]
[null,""]
[null,""]
[null,""]
[null,""]
[null,""]
[null,""]
[null,""]
[null,""]
[null,""]
[null,""]
[null,""]
[null,""]
[null,""]
[null,""]
[null,""]
[null,""]
[null,""]
[null,""]
[null,""]
[null,""]
[null,""]
[null,""]
[null,""]
[null,""]
[null,""]
[null,""]
[null,""]
[null,""]
[null,""]
[null,""]
[null,""]
[null,""]
[null,""]
[null,""]
[null,""]
[null,""]
[null,""]
[null,""]
[null,""]
[null,""]
[null,""]
[null,""]
[null,""]
[null,""]
[null,""]
[null,""]
[null,""]
[null,""]
[null,""]
[null,""]
[null,""]
[null,""]
[null,{"$f":"IF(ISBLANK(A1933),\"\",VLOOKUP(A1933,base_itens,2,FALSE))","v":""}]
[null,""]
[null,""]
[null,""]
[null,""]
[null,""]
[null,""]
[null,""]
[null,""]
[null,""]
[null,""]
[null,""]
[null,""]
[null,""]
[null,""]
[null,""]
[null,""]
[null,""]
[null,""]
[null,""]
[null,""]
[null,""]
[null,""]
[null,""]
[null,""]
[null,""]
[null,""]
[null,""]
[null,""]
[null,""]
[null,""]
[null,""]
[null,""]
[null,""]
[null,""]
[null,""]
[null,""]
[null,""]
[null,""]
[null,""]
[null,""]
[null,""]
[null,""]
[null,""]
[null,""]
[null,""]
[null,""]
[null,""]
[null,""]
[null,""]
[null,""]
[null,""]
[null,""]
[null,""]
[null,""]
[null,""]
[null,""]
[null,""]
[null,""]
[null,""]
[null,""]
[null,""]
[null,""]
[null,""]
[null,{"$f":"IF(ISBLANK(A1997),\"\",VLOOKUP(A1997,base_itens,2,FALSE))","v":""}]
[null,""]
[null,""]
[null,""]
[null,""]
[null,""]
[null,""]
[null,""]
[null,""]
[null,""]
[null,""]
[null,""]
[null,""]
[null,""]
[null,""]
[null,""]
[null,""]
[null,""]
[null,""]
[null,""]
[null,""]
[null,""]
[null,""]
[null,""]
[null,""]
[null,""]
[null,""]
[null,""]
[null,""]
[null,""]
[null,""]
[null,""]
[null,""]
[null,""]
[null,""]
[null,""]
[null,""]
[null,""]
[null,""]
[null,""]
[null,""]
[null,""]
[null,""]
[null,""]
[null,""]
[null,""]
[null,""]
[null,""]
[null,""]
[null,""]
[null,""]
[null,""]
[null,""]
[null,""]
[null,""]
[null,""]
[null,""]
[null,""]
[null,""]
[null,""]
[null,""]
[null,""]
[null,""]
[null,""]
[null,{"$f":"IF(ISBLANK(A2061),\"\",VLOOKUP(A2061,base_itens,2,FALSE))","v":""}]
[null,""]
[null,""]
[null,""]
[null,""]
[null,""]
[null,""]
[null,""]
[null,""]
[null,""]
[null,""]
[null,""]
[null,""]
[null,""]
[null,""]
[null,""]
[null,""]
[null,""]
[null,""]
[null,""]
[null,""]
[null,""]
[null,""]
[null,""]
[null,""]
[null,""]
[null,""]
[null,""]
[null,""]
[null,""]
[null,""]
[null,""]
[null,""]
[null,""]
[null,""]
[null,""]
[null,""]
[null,""]
[null,""]
[null,""]
[null,""]
[null,""]
[null,""]
[null,""]
[null,""]
[null,""]
[null,""]
[null,""]
[null,""]
[null,""]
[null,""]
[null,""]
[null,""]
[null,""]
[null,""]
[null,""]
[null,""]
[null,""]
[null,""]
[null,""]
[null,""]
[null,""]
[null,""]
[null,""]
[null,{"$f":"IF(ISBLANK(A2125),\"\",VLOOKUP(A2125,base_itens,2,FALSE))","v":""}]
[null,""]
[null,""]
[null,""]
[null,""]
[null,""]
[null,""]
[null,""]
[null,""]
[null,""]
[null,""]
[null,""]
[null,""]
[null,""]
[null,""]
[null,""]
[null,""]
[null,""]
[null,""]
[null,""]
[null,""]
[null,""]
[null,""]
[null,""]
[null,""]
[null,""]
[null,""]
[null,""]
[null,""]
[null,""]
[null,""]
[null,""]
[null,""]
[null,""]
[null,""]
[null,""]
[null,""]
[null,""]
[null,""]
[null,""]
[null,""]
[null,""]
[null,""]
[null,""]
[null,""]
[null,""]
[null,""]
[null,""]
[null,""]
[null,""]
[null,""]
[null,""]
[null,""]
[null,""]
[null,""]
[null,""]
[null,""]
[null,""]
[null,""]
[null,""]
[null,""]
[null,""]
[null,""]
[null,""]
[null,{"$f":"IF(ISBLANK(A2189),\"\",VLOOKUP(A2189,base_itens,2,FALSE))","v":""}]
[null,""]
[null,""]
[null,""]
[null,""]
[null,""]
[null,""]
[null,""]
[null,""]
[null,""]
[null,""]
[null,""]
[null,""]
[null,""]
[null,""]
[null,""]
[null,""]
[null,""]
[null,""]
[null,""]
[null,""]
[null,""]
[null,""]
[null,""]
[null,""]
[null,""]
[null,""]
[null,""]
[null,""]
[null,""]
[null,""]
[null,""]
[null,""]
[null,""]
[null,""]
[null,""]
[null,""]
[null,""]
[null,""]
[null,""]
[null,""]
[null,""]
[null,""]
[null,""]
[null,""]
[null,""]
[null,""]
[null,""]
[null,""]
[null,""]
[null,""]
[null,""]
[null,""]
[null,""]
[null,""]
[null,""]
[null,""]
[null,""]
[null,""]
[null,""]
[null,""]
[null,""]
[null,""]
[null,""]
[null,{"$f":"IF(ISBLANK(A2253),\"\",VLOOKUP(A2253,base_itens,2,FALSE))","v":""}]
[null,""]
[null,""]
[null,""]
[null,""]
[null,""]
[null,""]
[null,""]
[null,""]
[null,""]
[null,""]
[null,""]
[null,""]
[null,""]
[null,""]
[null,""]
[null,""]
[null,""]
[null,""]
[null,""]
[null,""]
[null,""]
[null,""]
[null,""]
[null,""]
[null,""]
[null,""]
[null,""]
[null,""]
[null,""]
[null,""]
[null,""]
[null,""]
[null,""]
[null,""]
[null,""]
[null,""]
[null,""]
[null,""]
[null,""]
[null,""]
[null,""]
[null,""]
[null,""]
[null,""]
[null,""]
[null,""]
[null,""]
[null,""]
[null,""]
[null,""]
[null,""]
[null,""]
[null,""]
[null,""]
[null,""]
[null,""]
[null,""]
[null,""]
[null,""]
[null,""]
[null,""]
[null,""]
[null,""]
[null,{"$f":"IF(ISBLANK(A2317),\"\",VLOOKUP(A2317,base_itens,2,FALSE))","v":""}]
[null,""]
[null,""]
[null,""]
[null,""]
[null,""]
[null,""]
[null,""]
[null,""]
[null,""]
[null,""]
[null,""]
[null,""]
[null,""]
[null,""]
[null,""]
[null,""]
[null,""]
[null,""]
[null,""]
[null,""]
[null,""]
[null,""]
[null,""]
[null,""]
[null,""]
[null,""]
[null,""]
[null,""]
[null,""]
[null,""]
[null,""]
[null,""]
[null,""]
[null,""]
[null,""]
[null,""]
[null,""]
[null,""]
[null,""]
[null,""]
[null,""]
[null,""]
[null,""]
[null,""]
[null,""]
[null,""]
[null,""]
[null,""]
[null,""]
[null,""]
[null,""]
[null,""]
[null,""]
[null,""]
[null,""]
[null,""]
[null,""]
[null,""]
[null,""]
[null,""]
[null,""]
[null,""]
[null,""]
[null,{"$f":"IF(ISBLANK(A2381),\"\",VLOOKUP(A2381,base_itens,2,FALSE))","v":""}]
[null,""]
[null,""]
[null,""]
[null,""]
[null,""]
[null,""]
[null,""]
[null,""]
[null,""]
[null,""]
[null,""]
[null,""]
[null,""]
[null,""]
[null,""]
[null,""]
[null,""]
[null,""]
[null,""]
[null,""]
[null,""]
[null,""]
[null,""]
[null,""]
[null,""]
[null,""]
[null,""]
[null,""]
[null,""]
[null,""]
[null,""]
[null,""]
[null,""]
[null,""]
[null,""]
[null,""]
[null,""]
[null,""]
[null,""]
[null,""]
[null,""]
[null,""]
[null,""]
[null,""]
[null,""]
[null,""]
[null,""]
[null,""]
[null,""]
[null,""]
[null,""]
[null,""]
[null,""]
[null,""]
[null,""]
[null,""]
[null,""]
[null,""]
[null,""]
[null,""]
[null,""]
[null,""]
[null,""]
[null,{"$f":"IF(ISBLANK(A2445),\"\",VLOOKUP(A2445,base_itens,2,FALSE))","v":""}]
[null,""]
[null,""]
[null,""]
[null,""]
[null,""]
[null,""]
[null,""]
[null,""]
[null,""]
[null,""]
[null,""]
[null,""]
[null,""]
[null,""]
[null,""]
[null,""]
[null,""]
[null,""]
[null,""]
[null,""]
[null,""]
[null,""]
[null,""]
[null,""]
[null,""]
[null,""]
[null,""]
[null,""]
[null,""]
[null,""]
[null,""]
[null,""]
[null,""]
[null,""]
[null,""]
[null,""]
[null,""]
[null,""]
[null,""]
[null,""]
[null,""]
[null,""]
[null,""]
[null,""]
[null,""]
[null,""]
[null,""]
[null,""]
[null,""]
[null,""]
[null,""]
[null,""]
[null,""]
[null,""]
[null,""]
[null,""]
[null,""]
[null,""]
[null,""]
[null,""]
[null,""]
[null,""]
[null,""]
[null,{"$f":"IF(ISBLANK(A2509),\"\",VLOOKUP(A2509,base_itens,2,FALSE))","v":""}]
[null,""]
[null,""]
[null,""]
[null,""]
[null,""]
[null,""]
[null,""]
[null,""]
[null,""]
[null,""]
[null,""]
[null,""]
[null,""]
[null,""]
[null,""]
[null,""]
[null,""]
[null,""]
[null,""]
[null,""]
[null,""]
[null,""]
[null,""]
[null,""]
[null,""]
[null,""]
[null,""]
[null,""]
[null,""]
[null,""]
[null,""]
[null,""]
[null,""]
[null,""]
[null,""]
[null,""]
[null,""]
[null,""]
[null,""]
[null,""]
[null,""]
[null,""]
[null,""]
[null,""]
[null,""]
[null,""]
[null,""]
[null,""]
[null,""]
[null,""]
[null,""]
[null,""]
[null,""]
[null,""]
[null,""]
[null,""]
[null,""]
[null,""]
[null,""]
[null,""]
[null,""]
[null,""]
[null,""]
[null,{"$f":"IF(ISBLANK(A2573),\"\",VLOOKUP(A2573,base_itens,2,FALSE))","v":""}]
[null,""]
[null,""]
[null,""]
[null,""]
[null,""]
[null,""]
[null,""]
[null,""]
[null,""]
[null,""]
[null,""]
[null,""]
[null,""]
[null,""]
[null,""]
[null,""]
[null,""]
[null,""]
[null,""]
[null,""]
[null,""]
[null,""]
[null,""]
[null,""]
[null,""]
[null,""]
[null,""]
[null,""]
[null,""]
[null,""]
[null,""]
[null,""]
[null,""]
[null,""]
[null,""]
[null,""]
[null,""]
[null,""]
[null,""]
[null,""]
[null,""]
[null,""]
[null,""]
[null,""]
[null,""]
[null,""]
[null,""]
[null,""]
[null,""]
[null,""]
[null,""]
[null,""]
[null,""]
[null,""]
[null,""]
[null,""]
[null,""]
[null,""]
[null,""]
[null,""]
[null,""]
[null,""]
[null,""]
[null,{"$f":"IF(ISBLANK(A2637),\"\",VLOOKUP(A2637,base_itens,2,FALSE))","v":""}]
[null,""]
[null,""]
[null,""]
[null,""]
[null,""]
[null,""]
[null,""]
[null,""]
[null,""]
[null,""]
[null,""]
[null,""]
[null,""]
[null,""]
[null,""]
[null,""]
[null,""]
[null,""]
[null,""]
[null,""]
[null,""]
[null,""]
[null,""]
[null,""]
[null,""]
[null,""]
[null,""]
[null,""]
[null,""]
[null,""]
[null,""]
[null,""]
[null,""]
[null,""]
[null,""]
[null,""]
[null,""]
[null,""]
[null,""]
[null,""]
[null,""]
[null,""]
[null,""]
[null,""]
[null,""]
[null,""]
[null,""]
[null,""]
[null,""]
[null,""]
[null,""]
[null,""]
[null,""]
[null,""]
[null,""]
[null,""]
[null,""]
[null,""]
[null,""]
[null,""]
[null,""]
[null,""]
[null,""]
[null,{"$f":"IF(ISBLANK(A2701),\"\",VLOOKUP(A2701,base_itens,2,FALSE))","v":""}]
[null,""]
[null,""]
[null,""]
[null,""]
[null,""]
[null,""]
[null,""]
[null,""]
[null,""]
[null,""]
[null,""]
[null,""]
[null,""]
[null,""]
[null,""]
[null,""]
[null,""]
[null,""]
[null,""]
[null,""]
[null,""]
[null,""]
[null,""]
[null,""]
[null,""]
[null,""]
[null,""]
[null,""]
[null,""]
[null,""]
[null,""]
[null,""]
[null,""]
[null,""]
[null,""]
[null,""]
[null,""]
[null,""]
[null,""]
[null,""]
[null,""]
[null,""]
[null,""]
[null,""]
[null,""]
[null,""]
[null,""]
[null,""]
[null,""]
[null,""]
[null,""]
[null,""]
[null,""]
[null,""]
[null,""]
[null,""]
[null,""]
[null,""]
[null,""]
[null,""]
[null,""]
[null,""]
[null,""]
[null,{"$f":"IF(ISBLANK(A2765),\"\",VLOOKUP(A2765,base_itens,2,FALSE))","v":""}]
[null,""]
[null,""]
[null,""]
[null,""]
[null,""]
[null,""]
[null,""]
[null,""]
[null,""]
[null,""]
[null,""]
[null,""]
[null,""]
[null,""]
[null,""]
[null,""]
[null,""]
[null,""]
[null,""]
[null,""]
[null,""]
[null,""]
[null,""]
[null,""]
[null,""]
[null,""]
[null,""]
[null,""]
[null,""]
[null,""]
[null,""]
[null,""]
[null,""]
[null,""]
[null,""]
[null,""]
[null,""]
[null,""]
[null,""]
[null,""]
[null,""]
[null,""]
[null,""]
[null,""]
[null,""]
[null,""]
[null,""]
[null,""]
[null,""]
[null,""]
[null,""]
[null,""]
[null,""]
[null,""]
[null,""]
[null,""]
[null,""]
[null,""]
[null,""]
[null,""]
[null,""]
[null,""]
[null,""]
[null,{"$f":"IF(ISBLANK(A2829),\"\",VLOOKUP(A2829,base_itens,2,FALSE))","v":""}]
[null,""]
[null,""]
[null,""]
[null,""]
[null,""]
[null,""]
[null,""]
[null,""]
[null,""]
[null,""]
[null,""]
[null,""]
[null,""]
[null,""]
[null,""]
[null,""]
[null,""]
[null,""]
[null,""]
[null,""]
[null,""]
[null,""]
[null,""]
[null,""]
[null,""]
[null,""]
[null,""]
[null,""]
[null,""]
[null,""]
[null,""]
[null,""]
[null,""]
[null,""]
[null,""]
[null,""]
[null,""]
[null,""]
[null,""]
[null,""]
[null,""]
[null,""]
[null,""]
[null,""]
[null,""]
[null,""]
[null,""]
[null,""]
[null,""]
[null,""]
[null,""]
[null,""]
[null,""]
[null,""]
[null,""]
[null,""]
[null,""]
[null,""]
[null,""]
[null,""]
[null,""]
[null,""]
[null,""]
[null,{"$f":"IF(ISBLANK(A2893),\"\",VLOOKUP(A2893,base_itens,2,FALSE))","v":""}]
[null,""]
[null,""]
[null,""]
[null,""]
[null,""]
[null,""]
[null,""]
[null,""]
[null,""]
[null,""]
[null,""]
[null,""]
[null,""]
[null,""]
[null,""]
[null,""]
[null,""]
[null,""]
[null,""]
[null,""]
[null,""]
[null,""]
[null,""]
[null,""]
[null,""]
[null,""]
[null,""]
[null,""]
[null,""]
[null,""]
[null,""]
[null,""]
[null,""]
[null,""]
[null,""]
[null,""]
[null,""]
[null,""]
[null,""]
[null,""]
[null,""]
[null,""]
[null,""]
[null,""]
[null,""]
[null,""]
[null,""]
[null,""]
[null,""]
[null,""]
[null,""]
[null,""]
[null,""]
[null,""]
[null,""]
[null,""]
[null,""]
[null,""]
[null,""]
[null,""]
[null,""]
[null,""]
[null,""]
[null,{"$f":"IF(ISBLANK(A2957),\"\",VLOOKUP(A2957,base_itens,2,FALSE))","v":""}]
[null,""]
[null,""]
[null,""]
[null,""]
[null,""]
[null,""]
[null,""]
[null,""]
[null,""]
[null,""]
[null,""]
[null,""]
[null,""]
[null,""]
[null,""]
[null,""]
[null,""]
[null,""]
[null,""]
[null,""]
[null,""]
[null,""]
[null,""]
[null,""]
[null,""]
[null,""]
[null,""]
[null,""]
[null,""]
[null,""]
[null,""]
[null,""]
[null,""]
[null,""]
[null,""]
[null,""]
[null,""]
[null,""]
[null,""]
[null,""]
[null,""]
[null,""]
[null,""]

{"sheet":"Base12","index":1,"n_rows":85,"n_cols":13,"rows_kept":85,"cut":false,"hidden":false,"merged":[]}
["2023-08-31"]
[]
["Post","base-itens","Løpetid","Pant","Portefølje","Verdsetting","SEKTOR2012_FORKORTET","NÆRING","VALUTA","VALUTA10","VALUTA90","FYLKE"]
["1300111600 Gjenstående løpetid på balanseposter, Bankinnskudd",{"$f":"MID(A4,1,10)","v":"1300111600"},"00 Ingen ","00 Ingen","000 Ingen","00 Ingen","00000 Usektorisert","000 Ingen","10 Norske kroner (NOK)","10 Norske kroner (NOK)","90 Ingen valutafordeling","03 Oslo"]
["1300123010 Gjenstående løpetid på balanseposter, Rentebærende omsettelige verdipapirer, OMF",{"$f":"MID(A5,1,10)","v":"1300123010"},"10 Tom. 3 mnd.","10 Pant i eiendom","010 Internasjonale reserver","10 Virkelig verdi","00820 Norske og utenlandske sentralbanker","011 Jordbruk og tilknyttede tjenester","30 Sum utenlandsk valuta ",null,null,"11 Rogaland"]
["1300123090 Gjenstående løpetid på balanseposter, Rentebærende omsettelige verdipapirer, øvrige","1300123090","11 Tom. 1 mnd.","11 Pant i boligeiendom","090 Norges Bank, ekskl. internasjonsle resverver og SPU","30 Egenkapitalmodellen","00830 Norske og utenlandske sentralbanker og kredittinstitusjoner ","012 Skogbruk og tilknyttede tjenester ","90 Ingen valutafordeling",null,null,"15 Møre og Romsdal"]
["1300135100 Gjenstående løpetid på balanseposter, Utlån, brutto balanseført verdi","1300135100","18 Over 1 mnd. tom. 3 mnd.","12 Pant i næringseiendom",null,"50 kost, alle modeller","00840 Norske og utenlandkse kredittinstitusjoner","013 Fiske og fangst",null,null,null,"18 Nordland"]
["1300173010 Gjenstående løpetid på balanseposter, Lån i form av rentebærende omsettelige verdipapirer, OMF","1300173010","20 Over 3 mnd. tom. 1 år","50 Annen pant/sikkerhet",null,null,"00880 Norske og utenlandske sektorer utenom sentralbanker og kredittinstitusjoner","014 Aquakultur (oppdrett og klekkerier)",null,null,null,"21 Svalbard"]
["1300173090 Gjenstående løpetid på balanseposter, Lån i form av rentebærende omsettelige verdipapirer, øvrige","1300173090","21 Over 3 mnd. tom. 6 mnd.","80 Uten pant/sikkerhet",null,null,"01000 Norske sektorer i alt","019 Bergverksdrift og -utvinning mv.",null,null,null,"22 Jan Mayen"]
["1300175000 Gjenstående løpetid på balanseposter, Andre lån","1300175000","28 Over 6 mnd. tom. 1 år",null,null,null,"01008    \"    - tilknyttede selskaper","022 Tjenester tilknyttet utvinning av råolje og naturgass",null,null,null,"23 Kontinentalsokkelen"]
["1300180000 Gjenstående løpetid på balanseposter, Ansvarlig lånekapital","1300180000","30 Ufordelt tom. 1 år",null,null,null,"01009    \"    - konsernselskaper","023 Utvinning av råolje og naturgass",null,null,null,"30 Viken"]
["1704100100 Engasjementer knyttet til utlån (inkl. ubenytt. ramme) og garantier, Misligholdte etter 90-dagers def.","1704100100","40 Over 1 år tom. 5 år",null,null,null,"01010    \"    - ekskl. tilkn. og konsernselskaper","025 Industri",null,null,null,"34 Innlandet"]
["1704100200 Engasjementer knyttet til utlån (inkl. ubenytt. ramme) og garantier, Andre misligholdte jf.kapitalkrav.forskr. § 10-1","1704100200","41 Over 1 år tom. 3 år",null,null,null,"03300 Norges Bank, norske kredittinstitusjoner og finansieringsforetak ","033 Bygging av skip og båter",null,null,null,"38 Vestfold og Telemark"]
["1704100300 Engasjementer knyttet til utlån (inkl. ubenytt. ramme) og garantier, Ikke-misligholdte over forfall - i overtrekk","1704100300","48 Over 3 år tom. 5 år",null,null,null,"08000 Ufordelt sektor","035 El-, gass-, damp- og varmtvannsforsyning",null,null,null,"42 Agder"]
["1704100400 Engasjementer knyttet til utlån (inkl. ubenytt. ramme) og garantier, Med betalingslettelse, med nedskrivning","1704100400","50 Over 5 år",null,null,null,"08800 Norske sektorer utenom Norges Bank, kredittinstitusjoner og finansieringsforetak","036 Vannforsyning, avløps- og renovasjonsvirksomhet",null,null,null,"46 Vestland"]
["1704100500 Engasjementer knyttet til utlån (inkl. ubenytt. ramme) og garantier, Med betalingslettelse, uten nedskrivning","1704100500","58 Over 5 år tom. 10 år",null,null,null,"09300 Utenlandske sentralbanker og kredittinstitusjoner","041 Utvikling av byggeprosjekter",null,null,null,"50 Trøndelag"]
["1704200100 Tapsnedskrivning på utlån (inkl. ubenytt. ramme) og garantier, Misligholdte etter 90-dagers def.","1704200100","60 Over 10 år",null,null,null,"09900 Utenlandske sektorer utenom sentralbanker og kredittinstitusjoner","043 Bygge- og anleggsvirksomhet ellers",null,null,null,"54 Troms og Finnmark"]
["1704200200 Tapsnedskrivning på utlån (inkl. ubenytt. ramme) og garantier, Andre misligholdte jf. kapitalkrav.forskr. § 10-1","1704200200","80 Over 1 år (ufordelt og alternativ fordeling)",null,null,null,"11100 Statens forretningsdrift","045 Varehandel, reparasjon av motorvogner"]
["1900135110 Utlån til amortisert kost og virkelig verdi over OCI, Brutto utlån, balanseført verdi, Trinn 1","1900135110","81 Over 1 år tom. 2 år",null,null,null,"11200 Statlige eide aksjeselskaper","049 Utenriks sjøfart og rørtransport"]
["1900135130 Utlån til amortisert kost og virkelig verdi over OCI, Brutto utlån, balanseført verdi, Trinn 2","1900135130","88 Over 2 år",null,null,null,"11208     \"    - tilknyttede selskaper","053 Transport ellers og lagring"]
["1900135150 Utlån til amortisert kost og virkelig verdi over OCI, Brutto utlån, balanseført verdi, Trinn 3","1900135150","90  Ufordelt",null,null,null,"15100 Kommunale foretak med ubegrenset ansvar","055 Overnattings- og serveringsvirksomhet"]
["1900323030 Beholdning av senior etterstilte obligasjoner, Rentebærende, omsettelige verdipapirer, Senior ettersstilte obligasjoner","1900323030",null,null,null,null,"15200 Kommunalt eide aksjeselskaper m.m.","063 Informasjon og kommunikasjon"]
["3300135150 Spesifikasjon av balansepost, Utlån brutto balanseført verdi, Nedbetalingslån med pant i bolig med avdragsfrihet","3300135150",null,null,null,null,"15208     \"    - tilknyttede selskaper m.m.","068 Omsetning og drift av fast eiendom"]
["3900135100 Fordringer på innenlandske sektorer, Utlån brutto balanseført verdi","3900135100",null,null,null,null,"21000 Priv. aksjeselskaper mv","073 Faglig og finansiell tjenesteyting"]
["3900135600 Fordringer på innenlandske sektorer, Tapsnedskrivning på utlån som er balanseført","3900135600",null,null,null,null,"21008     \"    - tilknyttede selskaper mv ","083 Forretningsmessig tjenesteyting"]
["3900261000 Gjeld fra innenlandske sektorer, Innskudd","3900261000",null,null,null,null,"21009     \"    - konsernselskaper","093 Tjenesteytende næringer ellers",null,null,null,null,{"$f":"MID(L25,3,60)","v":""}]
["4501000000 Inntekter fra utlån overført - formidlet til OMF-foretak, Nettoprovisjoner og andre inntekter","4501000000",null,null,null,null,"23000 Personlige foretak",null,null,null,null,null,""]
["4502135101 Overført - formidlet til OMF-foretak, Utlån brutto, heleid OMF-foretak","4502135101",null,null,null,null,"23008     \"    - tilknyttede selskaper",null,null,null,null,null,""]
["4502135102 Overført - formidlet til OMF-foretak, Utlån brutto, deleid OMF-foretak","4502135102",null,null,null,null,"23009     \"    - konsernselskaper",null,null,null,null,null,""]
["4502335100 Tilbakeført fra OMF-foretak, Utlån brutto","4502335100",null,null,null,null,"25000 Private produsentorienterte organisasjoner uten profittformål",null,null,null,null,null,""]
["4503107001 Overført - formidlet til OMF-foretak, Brutto garantiansvar, på utlån med pant i bolig","4503107001",null,null,null,null,"31000 Norges Bank",null,null,null,null,null,""]
["4503107009 Overført - formidlet til OMF-foretak, Brutto garantiansvar, på andre utlån","4503107009",null,null,null,null,"32000 Banker",null,null,null,null,null,""]
["5506105118 Ubenyttet ramme, Utlån brutto, rammelån - kreditter, inkl. kredittkort og ekskl. factoring","5506105118",null,null,null,null,"32008     \"    - tilknyttede selskaper",null,null,null,null,null,""]
["5906400000 Garantier overfor sikringsfondet","5906400000",null,null,null,null,"32009     \"    - konsernselskaper",null,null,null,null,null,""]
["5906600000 Fulltegningsgarantier","5906600000",null,null,null,null,"35000 Kredittforetak",null,null,null,null,null,""]
["5906900000 Annet garantiansvar","5906900000",null,null,null,null,"35008     \"    - tilknyttede selskaper",null,null,null,null,null,""]
["6500160011 Spesifikasjon av balansepost, samlende innskudd på klientkonti","6500160011",null,null,null,null,"35009     \"    - konsernselskaper",null,null,null,null,null,""]
["6500160012 Spesifikasjon av balansepost, Innskudd på klientkonti, dekket av norsk innskuddsgarantiordning","6500160012",null,null,null,null,"36000 Finansieringsforetak",null,null,null,null,null,""]
["6500160015 Spesifikasjon av balansepost, dekket av EUs innskuddsgarantiordning (dekning av innskudd inntil 100 000 EUR)","6500160015",null,null,null,null,"36008     \"    - tilknyttede selskaper",null,null,null,null,null,""]
["6600160001 Dekket av  norsk innskuddsgarantiordning (dekning av innskudd inntil 2 mill. NOK)","6600160001",null,null,null,null,"36009     \"    - konsernselskaper",null,null,null,null,null,""]
["6600160003 Dekket av EUs innskuddsgarantiordning (dekning av innskudd inntil 100 000 EUR)","6600160003",null,null,null,null,"39000 Statlige låneinstitutter mv.",null,null,null,null,null,""]
["6600160009 Dekket av norsk innskuddsgarantiordning ved topping up","6600160009",null,null,null,null,"39008     \"    - tilknyttede selskaper",null,null,null,null,null,""]
["6608060001 Antall innskytere fullt dekket av den norske innskuddsgarantiordningen (innskudd inntil 2 mill NOK)","6608060001",null,null,null,null,"41000 Holdingforetak i finanskonsern",null,null,null,null,null,""]
["6608060002 Antall innskytere ikke fullt dekket av den norske innskuddsgarantiordningen (innskudd over 2 mill NOK)","6608060002",null,null,null,null,"41008     \"    - tilknyttede selskaper",null,null,null,null,null,""]
["6608060003 Antall innskytere fullt dekket av EUs innskuddsgarantiordning (innskudd inntil 100 000 EUR)","6608060003",null,null,null,null,"41009     \"    - konsernselskaper",null,null,null,null,null,""]
["6608060004 Antall innskytere ikke fullt dekket av EUs innskuddsgarantiordning (innskudd over 100 000 EUR) ","6608060004",null,null,null,null,"43000 Verdipapirfond",null,null,null,null,null,""]
["7500105213 Spesifikasjon av balansepost for utlån i rentestatistikken, Hovedstol, kredittkort hvor det løper renter","7500105213",null,null,null,null,"45000 Investeringsselskaper og aktive eierfond/PE-fond",null,null,null,null,null,""]
["7500105214 Spesifikasjon av balansepost for utlån i rentestatistikken, Hovedstol, kredittkort hvor det ikke løper renter","7500105214",null,null,null,null,"45008     \"    - tilknyttede selskaper",null,null,null,null,null,""]
["7500105219 Spesifikasjon av balansepost for utlån i rentestatistikken, Hovedstol, andre rammelån - kreditter, ekskl. factoring","7500105219",null,null,null,null,"45009     \"    - konsernselskap",null,null,null,null,null,""]
["7500105250 Spesifikasjon av balansepost for utlån i rentestatistikken, Hovedstol, nedbetalingslån","7500105250",null,null,null,null,"49000 Øvrige finansielle foretak unntatt forsikring",null,null,null,null,null,""]
["7507105215 Rente- og provisjonssats på utlån (% * 100) i rentestatistikken, Hovedstol, kredittkort i alt","7507105215",null,null,null,null,"49008     \"    - tilknyttede selskaper",null,null,null,null,null,""]
["7507105219 Rente- og provisjonssats på utlån (% * 100) i rentestatistikken, Hovedstol, andre rammelån - kreditter, ekskl. factoring","7507105219",null,null,null,null,"49009     \"    - konsernselskaper",null,null,null,null,null,""]
["7507105250 Rente- og provisjonssats på utlån (% * 100) i rentestatistikken, Hovedstol, nedbetalingslån","7507105250",null,null,null,null,"55000 Livsforsikringsselskaper og pensjonskasser",null,null,null,null,null,""]
["7606005419 Utlånsramme, Nye utlån, andre rammelån - rammekreditter","7606005419",null,null,null,null,"55008     \"     - tilknyttede selskaper",null,null,null,null,null,""]
["7606005450 Utlånsramme, Nye utlån, nedbetalingslån","7606005450",null,null,null,null,"55009     \"     - konsernselskaper",null,null,null,null,null,""]
["7607105419 Rente- og provisjonssats på nye utlån (% * 100), Andre rammelån - rammekreditter","7607105419",null,null,null,null,"57000 Skadeforsikringsselskaper",null,null,null,null,null,""]
["7607105450 Rente- og provisjonssats på nye utlån (% * 100), Nedbetalingslån","7607105450",null,null,null,null,"57008     \"    - tilknyttede selskaper",null,null,null,null,null,""]
["7700101510 Spesifikasjon av balansepost for rentestatistikken, Innskudd unntatt skattetrekkskonti, hovedstol, brukskonti","7700101510",null,null,null,null,"57009     \"    - konsernselskaper",null,null,null,null,null,""]
["7700101520 Spesifikasjon av balansepost for rentestatistikken, Innskudd unntatt skattetrekkskonti, hovedstol, sparekonti mv. uten binding","7700101520",null,null,null,null,"61000 Stats- og trygdeforvaltningen",null,null,null,null,null,""]
["7700101530 Spesifikasjon av balansepost for rentestatistikken, Innskudd unntatt skattetrekkskonti, hovedstol, BSU-konti med skattefradrag","7700101530",null,null,null,null,"61008     \"    - tilknyttede selskaper",null,null,null,null,null,""]
["7700101591 Spesifikasjon av balansepost for rentestatistikken, Innskudd unntatt skattetrekkskonti, hovedstol, andre unntatt skattetrekkskonti","7700101591",null,null,null,null,"65000 Kommuneforvaltningen",null,null,null,null,null,""]
["7707201510 Rentesats på innskudd (% * 100) unntatt skattetrekkskonti, Hovedstol, brukskonti","7707201510",null,null,null,null,"65008     \"    - tilknyttede selskaper",null,null,null,null,null,""]
["7707201520 Rentesats på innskudd (% * 100) unntatt skattetrekkskonti, Hovedstol, sparekonti mv. uten binding","7707201520",null,null,null,null,"70000 Ideelle organisasjoner",null,null,null,null,null,""]
["7707201530 Rentesats på innskudd (% * 100) unntatt skattetrekkskonti, Hovedstol, BSU-konti med skattefradrag","7707201530",null,null,null,null,"70008     \"    - tilknyttede selskaper",null,null,null,null,null,""]
["7707201591 Rentesats på innskudd (% * 100) unntatt skattetrekkskonti, Hovedstol, andre innskudd unntatt skattetrekkskonti","7707201591",null,null,null,null,"70009     \"    - konsernselskaper",null,null,null,null,null,""]
["8302204000 Finansielle derivater (gjelder kun Norges Bank)","8302204000",null,null,null,null,"82000 Personlig næringsdrivende",null,null,null,null,null,""]
["8502159100 Kjøp, av bygninger og annen fast eiendom","8502159100",null,null,null,null,"83000 Borettslag o.l.",null,null,null,null,null,""]
["8502159400 Kjøp, av maskiner, inventar og transportmidler","8502159400",null,null,null,null,"85000 Lønnstakere, pensjonister, trygdede, studenter o.a.",null,null,null,null,null,""]
["8502159610 Kjøp. Leierettigheter bygninger og annen fast eiendom","8502159610",null,null,null,null,"90000 Utenlandske sektorer i alt",null,null,null,null,null,{"$f":"MID(L68,3,60)","v":""}]
["8502159690 Kjøp. Leierettigheter maskiner, inventar og transportmidler","8502159690",null,null,null,null,"90008     \"    - tilknyttede selskaper",null,null,null,null,null,""]
["8502159700 Kjøp, av immaterielle eiendeler","8502159700",null,null,null,null,"90009     \"    - konsernselskaper",null,null,null,null,null,""]
["8502359100 Salg, av bygninger og annen fast eiendom","8502359100",null,null,null,null,"90010     \"    - andre enn konsern ogtilknyttede selskaper",null,null,null,null,null,""]
["8502359400 Salg, av maskiner, inventar og transportmidler","8502359400",null,null,null,null,"91000 Utenlandske ikke-finansielle foretak",null,null,null,null,null,""]
["8502359610 Salg. Leierettigheter bygninger og annen fast eiendom","8502359610",null,null,null,null,"91008     \"    - tilknyttede selskaper",null,null,null,null,null,""]
["8502359690 Salg. Leierettigheter maskiner, inventar og transportmidler","8502359690",null,null,null,null,"91009     \"    - konsenselskaper",null,null,null,null,null,""]
["8502359700 Salg, av immaterielle eiendeler","8502359700",null,null,null,null,"92000 Utenlandske sentralbanker",null,null,null,null,null,""]
["8502459100 Egentilvirket - egne byggearbeider - internt opparbeidet, Bygninger og annen fast eiendom","8502459100",null,null,null,null,"93000 Utenlandske kredittinstitusjoner ",null,null,null,null,null,""]
["8502459700 Egentilvirket - egne byggearbeider - internt opparbeidet, Immaterielle eiendeler","8502459700",null,null,null,null,"93008     \"    - tilknyttede selskaper",null,null,null,null,null,""]
["9408100000 Antall årsverk",{"$f":"MID(A79,1,10)","v":"9408100000"},null,null,null,null,"93009     \"    - konsernselskaper",null,null,null,null,null,""]
[null,null,null,null,null,null,"94000 Multilaterale utviklingsbanker",null,null,null,null,null,""]
[null,null,null,null,null,null,"95000 Utenlandske andre finansielle foretak",null,null,null,null,null,""]
[null,null,null,null,null,null,"95008     \"    - tilknyttede selskaper",null,null,null,null,null,""]
[null,null,null,null,null,null,"95009     \"     - konsernselskaper",null,null,null,null,null,""]
[null,null,null,null,null,null,"96000 Utenlandsk offentlig forvaltning",null,null,null,null,null,""]
[null,null,null,null,null,null,"98000 Utenlandske husholdninger",null,null,null,null,null,""]